bitfinex/quotes_BTCUSD_20240815
["timestamp","ask_amount","ask_price","bid_price","bid_amount"]
[1723714229230,0.96977055,58506.0,58505.0,0.06937]
[1723714229403,0.8358304,58506.0,58505.0,0.06937]
[1723714229580,0.8348304,58506.0,58505.0,0.06837]
[1723714230036,1.1766754,58506.0,58505.0,0.06837]
[1723714230242,1.5185204,58506.0,58505.0,0.06837]
[1723714230461,1.5185204,58506.0,58496.0,0.0009053]
[1723714230462,0.170948,58497.0,58496.0,0.0009053]
[1723714230664,1.49077158,58497.0,58496.0,0.0009053]
[1723714230878,1.66740224,58497.0,58496.0,0.0009053]
[1723714231084,1.89907969,58497.0,58496.0,0.0009053]
[1723714231276,1.89907969,58497.0,58486.0,0.170979]
[1723714231277,0.170961,58493.0,58486.0,0.170979]
[1723714231498,0.11637572,58488.0,58487.0,0.170978]
[1723714232426,0.0652,58488.0,58487.0,0.170978]
[1723714232630,0.0652,58488.0,58487.0,0.171978]
[1723714233893,0.11174445,58488.0,58487.0,0.171978]
[1723714234110,0.11174445,58488.0,58487.0,0.01229975]
[1723714234514,0.11174445,58488.0,58487.0,0.01329975]
[1723714234675,0.11174445,58488.0,58487.0,0.00967873]
[1723714234873,0.0652,58488.0,58487.0,0.00967873]
[1723714235097,0.0882,58488.0,58487.0,0.00967873]
[1723714235300,0.0882,58488.0,58487.0,0.18065673]
[1723714235503,0.0882,58488.0,58487.0,0.52261273]
[1723714235704,0.023,58488.0,58487.0,0.52261273]
[1723714235902,0.023,58491.0,58489.0,0.170971]
[1723714236108,0.17155454,58490.0,58489.0,0.170971]
[1723714236305,0.19455454,58490.0,58489.0,0.170971]
[1723714236956,0.0629,58492.0,58491.0,0.170966]
[1723714237134,0.0618,58495.0,58494.0,0.170957]
[1723714237731,0.0618,58495.0,58494.0,0.512872]
[1723714239601,0.0618,58495.0,58494.0,0.52053497]
[1723714240475,0.0698,58495.0,58494.0,0.52053497]
[1723714242551,0.008,58495.0,58494.0,1.34836497]
[1723714243017,0.008,58495.0,58494.0,1.35215087]
[1723714243414,0.015,58495.0,58494.0,1.35215087]
[1723714243620,0.0762,58495.0,58494.0,0.18240587]
[1723714243809,0.0692,58495.0,58494.0,0.52432087]
[1723714244243,0.0762,58495.0,58494.0,0.52432087]
[1723714244900,0.015,58495.0,58494.0,0.86623587]
[1723714245097,0.015,58495.0,58494.0,1.29105087]
[1723714245614,0.015,58495.0,58494.0,1.69946587]
[1723714245715,0.007,58495.0,58494.0,1.69946587]
[1723714245927,0.000824,58496.0,58495.0,1.196681]
[1723714246139,0.000824,58496.0,58495.0,1.45372649]
[1723714246343,0.000824,58496.0,58495.0,1.79563549]
[1723714246562,0.000824,58496.0,58495.0,2.30909903]
[1723714247228,0.000824,58496.0,58495.0,2.31109903]
[1723714247456,0.000824,58496.0,58495.0,2.31509903]
[1723714248123,0.000824,58496.0,58495.0,2.31309903]
[1723714248531,0.000824,58496.0,58495.0,2.31109903]
[1723714248951,0.001824,58496.0,58495.0,2.31309903]
[1723714249160,0.001824,58496.0,58495.0,2.31609903]
[1723714249391,0.002824,58496.0,58495.0,2.31609903]
[1723714252419,0.002824,58496.0,58495.0,2.3257893]
[1723714256147,0.000823,58506.0,58505.0,1.27260623]
[1723714256354,0.000823,58506.0,58505.0,1.33310623]
[1723714256556,0.000823,58506.0,58505.0,1.34441381]
[1723714259394,0.000823,58506.0,58505.0,1.68626481]
[1723714261051,0.000823,58506.0,58505.0,1.62576481]
[1723714261255,0.000823,58506.0,58505.0,1.62976481]
[1723714261597,0.000823,58506.0,58505.0,1.61845723]
[1723714262048,0.000823,58506.0,58505.0,1.28930059]
[1723714263211,0.000823,58506.0,58505.0,1.28630059]
[1723714263634,0.000823,58506.0,58505.0,1.21280059]
[1723714264052,0.000823,58506.0,58505.0,1.20880059]
[1723714264238,0.000823,58506.0,58505.0,1.21180059]
[1723714268645,0.31187754,58506.0,58505.0,0.006]
[1723714268777,0.53945189,58506.0,58505.0,0.006]
[1723714269015,0.88129689,58506.0,58505.0,0.006]
[1723714269216,1.22314189,58506.0,58505.0,0.006]
[1723714269421,0.59049286,58506.0,58505.0,0.006]
[1723714269622,0.0785,58504.0,58499.0,0.170942]
[1723714269820,0.0654,58502.0,58499.0,0.170942]
[1723714270018,0.17155454,58501.0,58499.0,0.170942]
[1723714270267,0.19455454,58501.0,58500.0,0.17094]
[1723714270537,0.19455454,58501.0,58498.0,0.170943]
[1723714270922,0.19455454,58501.0,58499.0,0.512829]
[1723714270923,0.0824,58500.0,58499.0,0.512829]
[1723714271050,0.023,58501.0,58500.0,0.17094]
[1723714271463,0.023,58501.0,58500.0,0.51282]
[1723714271665,0.023,58501.0,58500.0,0.8547]
[1723714272455,0.023,58501.0,58500.0,0.8577]
[1723714272650,0.023,58501.0,58500.0,0.51582]
[1723714272856,0.023,58501.0,58500.0,0.51682]
[1723714274163,0.064623,58506.0,58505.0,0.170925]
[1723714274384,0.25917754,58506.0,58505.0,0.512776]
[1723714275482,0.26017754,58506.0,58505.0,0.512776]
[1723714275631,0.26217754,58506.0,58505.0,0.512776]
[1723714276388,0.003823,58506.0,58505.0,0.854627]
[1723714279397,0.003823,58506.0,58505.0,1.196478]
[1723714279597,0.003823,58506.0,58505.0,0.854627]
[1723714280863,0.003823,58506.0,58505.0,1.196478]
[1723714281262,0.003823,58506.0,58505.0,1.279278]
[1723714281825,0.003823,58506.0,58505.0,1.344078]
[1723714282031,0.003823,58506.0,58505.0,0.854627]
[1723714282249,0.066123,58506.0,58505.0,0.854627]
[1723714282870,0.065123,58506.0,58505.0,0.854627]
[1723714283344,0.065123,58506.0,58505.0,0.513776]
[1723714283760,0.065123,58506.0,58505.0,0.854627]
[1723714284097,0.066123,58506.0,58505.0,0.854627]
[1723714284506,0.064123,58506.0,58505.0,0.854627]
[1723714285534,0.066123,58506.0,58505.0,0.854627]
[1723714286543,0.066123,58506.0,58505.0,0.8555323]
[1723714287409,0.066123,58506.0,58505.0,0.5136813]
[1723714287615,0.26067754,58506.0,58505.0,0.0009053]
[1723714287762,0.49369698,58506.0,58505.0,0.0009053]
[1723714287962,0.84617985,58506.0,58505.0,0.0009053]
[1723714288430,0.79648051,58506.0,58505.0,0.0009053]
[1723714288632,0.66862844,58506.0,58505.0,0.0009053]
[1723714290977,0.79664073,58506.0,58505.0,0.1718303]
[1723714291388,0.66862844,58506.0,58505.0,0.1718303]
[1723714291590,0.71524073,58506.0,58505.0,0.5136813]
[1723714292200,0.58566645,58506.0,58505.0,0.5136813]
[1723714292407,0.68807748,58506.0,58505.0,0.5136813]
[1723714292990,0.58566645,58506.0,58505.0,0.5136813]
[1723714293205,0.68807748,58506.0,58505.0,0.5136813]
[1723714295236,0.62577748,58506.0,58505.0,0.5136813]
[1723714296427,0.62575887,58506.0,58505.0,0.5136813]
[1723714296650,0.52335138,58506.0,58505.0,0.5136813]
[1723714296805,0.62575887,58506.0,58505.0,0.5136813]
[1723714297226,0.52335138,58506.0,58505.0,0.5136813]
[1723714297439,0.62575887,58506.0,58505.0,0.5136813]
[1723714297644,0.52335138,58506.0,58505.0,0.5136813]
[1723714297856,0.62575887,58506.0,58505.0,0.5136813]
[1723714298058,0.27472637,58506.0,58505.0,0.9316323]
[1723714298959,0.19792393,58506.0,58505.0,0.9316323]
[1723714299500,0.27472637,58506.0,58505.0,0.5897813]
[1723714299713,0.24912761,58506.0,58505.0,0.5897813]
[1723714300109,0.24912761,58506.0,58505.0,0.5136813]
[1723714300110,0.07757307,58506.0,58505.0,0.5136813]
[1723714300313,0.07757307,58506.0,58505.0,0.8555323]
[1723714305601,0.02636939,58506.0,58505.0,0.8555323]
[1723714307594,0.10317183,58506.0,58505.0,0.8555323]
[1723714309023,0.10317183,58506.0,58505.0,0.1718303]
[1723714309024,0.41562637,58506.0,58505.0,0.1718303]
[1723714309230,0.79246216,58506.0,58505.0,0.1718303]
[1723714309637,0.66436091,58506.0,58505.0,0.1718303]
[1723714309839,0.33882393,58506.0,58505.0,0.0009053]
[1723714310040,0.66395769,58506.0,58505.0,0.0009053]
[1723714313612,0.66289187,58506.0,58505.0,0.0009053]
[1723714317799,0.66304143,58506.0,58505.0,0.0009053]
[1723714318200,0.81687429,58506.0,58505.0,0.0009053]
[1723714318400,0.66304143,58506.0,58505.0,0.0009053]
[1723714320068,0.81687429,58506.0,58505.0,0.0009053]
[1723714321775,0.66304143,58506.0,58505.0,0.0009053]
[1723714322897,0.58604143,58506.0,58505.0,0.0009053]
[1723714324019,0.73987429,58506.0,58505.0,0.0009053]
[1723714324337,0.58604143,58506.0,58505.0,0.0009053]
[1723714324923,0.73987429,58506.0,58505.0,0.0009053]
[1723714325530,0.58604143,58506.0,58505.0,0.0009053]
[1723714328209,0.52214143,58506.0,58505.0,0.1718303]
[1723714328611,0.52214143,58506.0,58505.0,0.5136813]
[1723714329432,0.35058689,58506.0,58505.0,0.5136813]
[1723714329635,0.35058689,58506.0,58505.0,0.9357323]
[1723714329809,0.45314568,58506.0,58505.0,0.9357323]
[1723714330185,0.02636939,58506.0,58505.0,0.9357323]
[1723714330595,0.48373129,58506.0,58505.0,0.9357323]
[1723714331694,0.48373129,58506.0,58505.0,0.5938813]
[1723714331695,0.35553228,58506.0,58505.0,0.5938813]
[1723714331927,0.35553228,58506.0,58505.0,0.2520303]
[1723714332114,0.35553228,58506.0,58505.0,0.5136813]
[1723714332333,0.59318682,58506.0,58505.0,0.0009053]
[1723714333144,0.76410882,58506.0,58505.0,0.0009053]
[1723714333348,0.59318682,58506.0,58505.0,0.0009053]
[1723714333573,0.74701968,58506.0,58505.0,0.0009053]
[1723714337379,0.68091968,58506.0,58505.0,0.0009053]
[1723714337560,0.52708682,58506.0,58505.0,0.0009053]
[1723714337800,0.19792393,58506.0,58505.0,0.0009053]
[1723714338008,0.523576,58506.0,58505.0,0.0009053]
[1723714344812,0.523576,58506.0,58505.0,0.5897813]
[1723714348039,0.523576,58506.0,58505.0,0.2479303]
[1723714348239,0.523576,58506.0,58505.0,0.0009053]
[1723714348439,0.67743745,58506.0,58505.0,0.0009053]
[1723714349503,0.8658198,58506.0,58505.0,0.0009053]
[1723714349701,0.9471198,58506.0,58505.0,0.0009053]
[1723714350859,0.73843745,58506.0,58505.0,0.0009053]
[1723714351196,0.584576,58506.0,58505.0,0.0009053]
[1723714351423,0.73843745,58506.0,58505.0,0.0009053]
[1723714351756,0.74803499,58506.0,58505.0,0.0009053]
[1723714354374,0.26852147,58506.0,58505.0,0.0009053]
[1723714354606,0.59420764,58506.0,58505.0,0.0009053]
[1723714355012,0.5846101,58506.0,58505.0,0.0009053]
[1723714355222,0.58392218,58506.0,58505.0,0.0009053]
[1723714355422,0.67685312,58506.0,58505.0,0.0009053]
[1723714355640,0.52292218,58506.0,58505.0,0.0009053]
[1723714355990,0.52292218,58506.0,58505.0,0.1718303]
[1723714356354,0.52292218,58506.0,58505.0,0.3130303]
[1723714359432,0.52452719,58506.0,58505.0,0.3130303]
[1723714359574,0.35297265,58506.0,58505.0,0.6548813]
[1723714360178,0.35297265,58506.0,58505.0,0.9967323]
[1723714362646,0.35529608,58506.0,58505.0,0.9967323]
[1723714363044,0.35529608,58506.0,58505.0,0.5916813]
[1723714363630,0.52685062,58506.0,58505.0,0.0009053]
[1723714363882,0.52463345,58506.0,58505.0,0.0009053]
[1723714364307,0.52463345,58506.0,58505.0,0.1718303]
[1723714364818,0.52450605,58506.0,58505.0,0.1718303]
[1723714365839,0.52445164,58506.0,58505.0,0.1718303]
[1723714366043,0.52445164,58506.0,58505.0,0.0009053]
[1723714367222,0.63537337,58506.0,58505.0,0.0009053]
[1723714367968,0.52445164,58506.0,58505.0,0.0009053]
[1723714368167,0.52449968,58506.0,58505.0,0.0009053]
[1723714369262,0.84933268,58506.0,58505.0,0.0009053]
[1723714369474,0.67841068,58506.0,58505.0,0.0009053]
[1723714371339,0.84933268,58506.0,58505.0,0.0009053]
[1723714372530,0.84937859,58506.0,58505.0,0.0009053]
[1723714372954,1.02093313,58506.0,58505.0,0.0009053]
[1723714373617,1.84952313,58506.0,58505.0,0.0009053]
[1723714373789,2.10483812,58506.0,58505.0,0.0009053]
[1723714374347,1.44653858,58506.0,58505.0,0.0009053]
[1723714374546,1.03730599,58506.0,58505.0,0.0009053]
[1723714374949,1.03530599,58506.0,58505.0,0.0009053]
[1723714375412,1.03830599,58506.0,58505.0,0.0009053]
[1723714375650,1.03730599,58506.0,58505.0,0.0009053]
[1723714376054,1.04030599,58506.0,58505.0,0.0009053]
[1723714377062,0.69846099,58506.0,58505.0,0.0009053]
[1723714377332,0.52753899,58506.0,58505.0,0.0774053]
[1723714378085,0.52453899,58506.0,58505.0,0.0774053]
[1723714378482,0.52853899,58506.0,58505.0,0.0774053]
[1723714378881,1.20986053,58506.0,58505.0,0.0774053]
[1723714379086,0.69646099,58506.0,58505.0,0.0774053]
[1723714379296,0.70046099,58506.0,58505.0,0.0774053]
[1723714379530,0.52953899,58506.0,58505.0,0.0774053]
[1723714380341,0.69898039,58506.0,58505.0,0.0774053]
[1723714380867,0.48743704,58506.0,58505.0,0.9320323]
[1723714381019,0.461769,58506.0,58505.0,0.9320323]
[1723714381223,0.461769,58506.0,58505.0,0.9983323]
[1723714381450,0.461769,58506.0,58505.0,1.3401833]
[1723714381451,0.44114025,58506.0,58505.0,1.3401833]
[1723714382276,0.00836939,58506.0,58505.0,1.3401833]
[1723714382889,0.00836939,58506.0,58505.0,1.85358884]
[1723714383119,0.00836939,58506.0,58505.0,1.95358884]
[1723714383895,0.00036939,58506.0,58505.0,1.95358884]
[1723714384245,0.00336939,58506.0,58505.0,1.95358884]
[1723714385082,0.00036939,58506.0,58505.0,1.95358884]
[1723714385286,0.00336939,58506.0,58505.0,1.95358884]
[1723714385505,0.00436939,58506.0,58505.0,1.95358884]
[1723714385726,0.00136939,58506.0,58505.0,1.95358884]
[1723714385923,0.00236939,58506.0,58505.0,1.95358884]
[1723714386671,0.00236939,58506.0,58505.0,1.7820343]
[1723714386881,0.00236939,58506.0,58505.0,1.8993343]
[1723714391856,0.00136939,58506.0,58505.0,1.8993343]
[1723714392389,0.00136939,58506.0,58505.0,1.9003343]
[1723714392561,0.00236939,58506.0,58505.0,1.9003343]
[1723714394027,0.00236939,58506.0,58505.0,1.4411833]
[1723714394153,0.00236939,58506.0,58505.0,1.5584833]
[1723714395025,0.00136939,58506.0,58505.0,1.5584833]
[1723714395226,0.00136939,58506.0,58505.0,1.5574833]
[1723714395658,0.00136939,58506.0,58505.0,1.5584833]
[1723714395855,0.00036939,58506.0,58505.0,1.5584833]
[1723714401758,0.00036939,58506.0,58505.0,1.5574833]
[1723714402186,0.00036939,58506.0,58505.0,1.5584833]
[1723714404638,0.00036939,58506.0,58505.0,1.1166323]
[1723714404862,0.00036939,58506.0,58505.0,0.1728303]
[1723714404863,0.06256939,58506.0,58505.0,0.1728303]
[1723714405030,0.08556939,58506.0,58505.0,0.1728303]
[1723714405884,0.54674727,58506.0,58505.0,0.0019053]
[1723714406015,1.18189803,58506.0,58505.0,0.0019053]
[1723714406221,1.86558803,58506.0,58505.0,0.0019053]
[1723714406427,1.86858803,58506.0,58505.0,0.0019053]
[1723714406878,2.02205251,58506.0,58505.0,0.0009053]
[1723714407079,2.01905251,58506.0,58505.0,0.0009053]
[1723714407276,2.03188151,58506.0,58505.0,0.0009053]
[1723714407498,1.87341703,58506.0,58505.0,0.0009053]
[1723714407704,2.24172438,58506.0,58505.0,0.0009053]
[1723714407910,2.25572438,58506.0,58505.0,0.0009053]
[1723714408077,1.001815,58499.0,58498.0,0.0009053]
[1723714408281,1.61755909,58499.0,58498.0,0.0009053]
[1723714409323,1.48251765,58499.0,58498.0,0.0009053]
[1723714409789,1.83625229,58499.0,58498.0,0.0009053]
[1723714409996,2.00780683,58499.0,58498.0,0.0009053]
[1723714410192,1.72181008,58499.0,58498.0,0.0009053]
[1723714410420,2.0197745,58499.0,58498.0,0.0009053]
[1723714411447,2.14756066,58499.0,58498.0,0.0009053]
[1723714412460,2.0197745,58499.0,58498.0,0.0009053]
[1723714413228,2.1219578,58499.0,58498.0,0.0009053]
[1723714414053,2.12174477,58499.0,58498.0,0.0009053]
[1723714414970,2.13170375,58499.0,58498.0,0.0009053]
[1723714415177,2.02952044,58499.0,58498.0,0.0009053]
[1723714415379,2.47140644,58499.0,58498.0,0.0009053]
[1723714415960,2.45940644,58499.0,58498.0,0.0009053]
[1723714416163,2.47340644,58499.0,58498.0,0.0009053]
[1723714416364,2.46040644,58499.0,58498.0,0.0009053]
[1723714418011,1.538563,58496.0,58487.0,0.0009064]
[1723714418236,2.46194619,58496.0,58487.0,0.0009064]
[1723714418612,2.61522115,58496.0,58487.0,0.0009064]
[1723714419191,2.62922115,58496.0,58487.0,0.0009064]
[1723714419398,2.47594619,58496.0,58487.0,0.0009064]
[1723714419699,3.91200073,58496.0,58487.0,0.0009064]
[1723714419907,3.94000073,58496.0,58487.0,0.0009064]
[1723714420102,4.26790373,58496.0,58487.0,0.0009064]
[1723714420309,1.339525,58488.0,58487.0,0.0009064]
[1723714420505,3.00687954,58488.0,58487.0,0.0009064]
[1723714420708,3.86107717,58488.0,58487.0,0.0009064]
[1723714420910,3.88407717,58488.0,58487.0,0.0009064]
[1723714421322,3.58551584,58488.0,58487.0,0.0009064]
[1723714421504,3.5090511,58488.0,58487.0,0.0009064]
[1723714422261,3.78151506,58488.0,58487.0,0.0009064]
[1723714422579,3.79551506,58488.0,58487.0,0.0009064]
[1723714422764,3.80527882,58488.0,58487.0,0.0009064]
[1723714423112,3.79127882,58488.0,58487.0,0.0009064]
[1723714423539,3.80527882,58488.0,58487.0,0.0009064]
[1723714423942,3.91860418,58488.0,58487.0,0.0009064]
[1723714424345,3.54681486,58488.0,58487.0,0.0009064]
[1723714424546,3.62317462,58488.0,58487.0,0.0009064]
[1723714424785,3.60917462,58488.0,58487.0,0.0009064]
[1723714425224,3.59770157,58488.0,58487.0,0.0009064]
[1723714425428,3.54681486,58488.0,58487.0,0.0009064]
[1723714425629,3.59770212,58488.0,58487.0,0.0009064]
[1723714425803,3.58370212,58488.0,58487.0,0.0009064]
[1723714425999,3.46640212,58488.0,58487.0,0.0009064]
[1723714426237,3.48040212,58488.0,58487.0,0.0009064]
[1723714426635,3.42951486,58488.0,58487.0,0.0009064]
[1723714426834,3.4803905,58488.0,58487.0,0.0009064]
[1723714427055,3.42951486,58488.0,58487.0,0.0009064]
[1723714428043,1.197028,58478.0,58474.0,0.0808]
[1723714428277,1.51128534,58478.0,58474.0,0.0808]
[1723714428750,1.39158254,58478.0,58474.0,0.0808]
[1723714429254,1.40558254,58478.0,58474.0,0.0808]
[1723714430994,1.41958254,58478.0,58474.0,0.0808]
[1723714432838,1.41958254,58478.0,58469.0,0.0636]
[1723714433210,1.41958254,58478.0,58469.0,0.1432]
[1723714434959,1.42943249,58478.0,58477.0,0.0766053]
[1723714435179,1.52391493,58478.0,58477.0,0.0766053]
[1723714435830,1.52391493,58478.0,58477.0,0.0009053]
[1723714436036,1.60381493,58478.0,58477.0,0.0009053]
[1723714437056,1.58981493,58478.0,58477.0,0.0009053]
[1723714437447,1.60381493,58478.0,58477.0,0.0009053]
[1723714437638,1.58981493,58478.0,58477.0,0.0009053]
[1723714438060,1.60381493,58478.0,58477.0,0.0009053]
[1723714438416,1.52391493,58478.0,58477.0,0.0009053]
[1723714438734,1.52391493,58478.0,58477.0,0.0815053]
[1723714438940,1.18190693,58478.0,58477.0,0.0815053]
[1723714439165,0.74541649,58478.0,58477.0,0.0815053]
[1723714440270,0.74541649,58478.0,58477.0,0.6585263]
[1723714440271,0.028,58478.0,58477.0,0.6585263]
[1723714440678,0.014,58478.0,58477.0,0.6585263]
[1723714440877,0.170972,58489.0,58485.0,0.1373]
[1723714441075,0.17155454,58488.0,58485.0,0.1373]
[1723714441275,0.24098062,58488.0,58485.0,0.1373]
[1723714441708,0.170978,58487.0,58485.0,0.1373]
[1723714441907,0.17155454,58486.0,58485.0,0.1373]
[1723714443135,0.19455454,58486.0,58485.0,0.1373]
[1723714443852,0.20855454,58486.0,58485.0,0.1373]
[1723714443990,0.2891275,58486.0,58485.0,0.1373]
[1723714444666,0.20855454,58486.0,58485.0,0.1373]
[1723714445080,0.22155454,58486.0,58485.0,0.1373]
[1723714446211,0.22155454,58486.0,58485.0,0.308284]
[1723714446407,0.22155454,58486.0,58485.0,0.650252]
[1723714446709,0.05,58486.0,58485.0,0.99222]
[1723714447312,0.05,58486.0,58485.0,0.650252]
[1723714451179,0.05,58486.0,58485.0,0.308284]
[1723714451382,0.05,58486.0,58485.0,0.650252]
[1723714453687,0.05,58486.0,58485.0,0.99222]
[1723714455228,0.05,58486.0,58485.0,0.9931264]
[1723714455391,0.027,58486.0,58485.0,1.3350944]
[1723714455715,0.027,58486.0,58485.0,1.6770624]
[1723714456277,0.014,58486.0,58485.0,1.6770624]
[1723714456500,0.000824,58488.0,58487.0,1.677902]
[1723714458023,0.001824,58488.0,58487.0,1.678902]
[1723714459933,0.001824,58488.0,58487.0,1.681902]
[1723714459934,0.002824,58488.0,58487.0,1.681902]
[1723714467923,0.002824,58488.0,58487.0,1.6828084]
[1723714468341,0.002824,58488.0,58487.0,2.19631894]
[1723714468465,0.002824,58488.0,58487.0,2.29631894]
[1723714468671,0.002824,58488.0,58487.0,1.95436294]
[1723714470825,0.002824,58488.0,58487.0,1.95636294]
[1723714473084,0.002824,58488.0,58487.0,2.29831894]
[1723714476228,0.002824,58488.0,58487.0,2.29631894]
[1723714478286,0.002824,58488.0,58487.0,2.29831894]
[1723714483159,0.002824,58488.0,58487.0,2.47575775]
[1723714483318,0.002824,58488.0,58487.0,2.29831894]
[1723714483882,0.002824,58488.0,58487.0,2.47575838]
[1723714484333,0.002824,58488.0,58487.0,2.29831894]
[1723714485316,0.002824,58488.0,58487.0,2.47576108]
[1723714485797,0.002824,58488.0,58487.0,2.13180508]
[1723714486044,0.002824,58488.0,58487.0,1.7828084]
[1723714486208,0.002824,58488.0,58487.0,1.4190524]
[1723714488020,0.002824,58488.0,58487.0,1.3017524]
[1723714490569,0.002824,58488.0,58487.0,0.0049064]
[1723714490570,0.145824,58488.0,58487.0,0.0049064]
[1723714490765,0.1604064,58488.0,58487.0,0.0049064]
[1723714490968,0.1834064,58488.0,58487.0,0.0049064]
[1723714491493,0.1824064,58488.0,58487.0,0.0039064]
[1723714491695,0.36386744,58488.0,58487.0,0.0039064]
[1723714491937,0.53484244,58488.0,58487.0,0.0029064]
[1723714492111,0.86588594,58488.0,58487.0,0.0009064]
[1723714492316,0.86688594,58488.0,58487.0,0.0029064]
[1723714492515,0.53393594,58488.0,58487.0,0.0029064]
[1723714492716,0.87588594,58488.0,58487.0,0.0029064]
[1723714492941,0.53293594,58488.0,58487.0,0.0009064]
[1723714493145,0.87488594,58488.0,58487.0,0.0009064]
[1723714493785,0.88288594,58488.0,58487.0,0.0009064]
[1723714493975,0.183824,58488.0,58487.0,0.0009064]
[1723714494115,0.183824,58488.0,58487.0,0.1718844]
[1723714494531,0.183824,58488.0,58487.0,0.5138404]
[1723714494729,0.183824,58488.0,58487.0,0.1718844]
[1723714497311,0.183824,58488.0,58487.0,0.0009064]
[1723714498965,0.183824,58488.0,58487.0,0.1718844]
[1723714501103,0.183824,58488.0,58487.0,0.8557964]
[1723714501308,0.017824,58488.0,58487.0,0.8557964]
[1723714501509,0.017824,58488.0,58487.0,1.1977524]
[1723714504287,0.017824,58488.0,58487.0,1.3434524]
[1723714504413,0.008824,58488.0,58487.0,1.95696294]
[1723714504614,0.011824,58488.0,58487.0,1.95696294]
[1723714504821,0.003824,58488.0,58487.0,1.95696294]
[1723714505339,0.003824,58488.0,58487.0,1.9569148]
[1723714506146,0.001824,58488.0,58487.0,1.9599148]
[1723714506346,0.000824,58488.0,58487.0,1.9569148]
[1723714506557,0.001824,58488.0,58487.0,1.9599148]
[1723714507902,0.002824,58488.0,58487.0,1.9629148]
[1723714508300,0.000824,58488.0,58487.0,1.9569148]
[1723714508510,0.001824,58488.0,58487.0,1.9629148]
[1723714508679,0.002824,58488.0,58487.0,1.9629148]
[1723714508880,0.002824,58488.0,58487.0,1.9599148]
[1723714508881,0.001824,58488.0,58487.0,1.9599148]
[1723714509223,0.002824,58488.0,58487.0,1.9629148]
[1723714511612,0.066024,58488.0,58487.0,0.86174826]
[1723714511735,0.002824,58488.0,58487.0,0.86174826]
[1723714511940,0.002824,58488.0,58487.0,1.20370426]
[1723714512343,0.002824,58488.0,58487.0,0.86174826]
[1723714512769,0.000824,58488.0,58487.0,0.85574826]
[1723714512963,0.000824,58488.0,58487.0,1.19770426]
[1723714513235,0.002824,58488.0,58487.0,1.20370426]
[1723714514360,0.002824,58488.0,58487.0,1.27870426]
[1723714518244,0.002824,58488.0,58487.0,1.34150426]
[1723714518663,0.002824,58488.0,58487.0,1.8550148]
[1723714518865,0.002824,58488.0,58487.0,1.9570148]
[1723714519683,0.002824,58488.0,58487.0,1.9550148]
[1723714523003,0.002824,58488.0,58487.0,1.64566026]
[1723714527736,0.002824,58488.0,58487.0,1.78576026]
[1723714529273,0.002824,58488.0,58487.0,1.72216026]
[1723714529935,0.002824,58488.0,58487.0,1.7318136]
[1723714530263,0.002824,58488.0,58487.0,1.6553136]
[1723714531832,0.002824,58488.0,58487.0,1.6614236]
[1723714533838,0.002824,58488.0,58487.0,1.7392236]
[1723714534951,0.002824,58488.0,58487.0,1.91277814]
[1723714535158,0.002824,58488.0,58487.0,1.97667814]
[1723714535379,0.002824,58488.0,58487.0,2.15412944]
[1723714536063,0.000824,58488.0,58487.0,2.14812944]
[1723714536303,0.001824,58488.0,58487.0,2.15112944]
[1723714536918,0.001824,58488.0,58487.0,1.97367814]
[1723714537337,0.002824,58488.0,58487.0,1.97667814]
[1723714537575,0.001824,58488.0,58487.0,1.97367814]
[1723714538049,0.002824,58488.0,58487.0,2.32363414]
[1723714538262,0.002824,58488.0,58487.0,1.98167814]
[1723714538479,0.001824,58488.0,58487.0,1.97867814]
[1723714538695,0.001824,58488.0,58487.0,2.31452414]
[1723714538834,0.001824,58488.0,58487.0,2.32658777]
[1723714539040,0.002824,58488.0,58487.0,2.51803283]
[1723714539397,0.001824,58488.0,58487.0,2.16207683]
[1723714539596,0.002824,58488.0,58487.0,2.17607683]
[1723714540585,0.002824,58488.0,58487.0,2.51803283]
[1723714542168,0.000823,58505.0,58504.0,1.196496]
[1723714542568,0.000823,58505.0,58504.0,1.20253729]
[1723714543359,0.075923,58505.0,58504.0,1.20253729]
[1723714543706,0.080923,58505.0,58504.0,1.20353729]
[1723714544118,0.084923,58505.0,58504.0,1.20353729]
[1723714544723,0.149023,58505.0,58504.0,1.20353729]
[1723714548303,0.149023,58505.0,58504.0,0.86168129]
[1723714548499,0.149023,58505.0,58504.0,0.51982529]
[1723714548915,0.172023,58505.0,58504.0,0.51982529]
[1723714552837,0.172023,58505.0,58504.0,0.00704129]
[1723714553013,0.88644261,58505.0,58504.0,0.00704129]
[1723714553216,0.88644261,58505.0,58504.0,0.001]
[1723714553439,1.52597671,58505.0,58504.0,0.001]
[1723714553763,1.86782771,58505.0,58504.0,0.001]
[1723714554528,1.86382771,58505.0,58504.0,0.001]
[1723714554731,1.8611398,58505.0,58504.0,0.001]
[1723714554955,1.8611398,58505.0,58494.0,0.170956]
[1723714555161,0.1439,58497.0,58494.0,0.170956]
[1723714555366,0.0874,58496.0,58495.0,0.17700299]
[1723714555569,0.023,58496.0,58494.0,0.170957]
[1723714555896,0.0869,58496.0,58495.0,0.00604899]
[1723714556027,0.1659,58496.0,58495.0,0.00604899]
[1723714556226,0.102,58496.0,58489.0,0.34194]
[1723714556429,0.102,58496.0,58493.0,0.17096]
[1723714556430,0.079,58494.0,58493.0,0.17096]
[1723714556679,0.065,58491.0,58487.0,0.00085826]
[1723714556883,0.065,58491.0,58489.0,0.170971]
[1723714557057,0.065,58491.0,58487.0,0.00085826]
[1723714557058,0.023,58490.0,58487.0,0.00085826]
[1723714557261,0.023,58490.0,58488.0,0.170974]
[1723714557468,0.023,58490.0,58489.0,0.170972]
[1723714558514,0.023,58490.0,58489.0,0.172972]
[1723714559575,0.024,58490.0,58489.0,0.172972]
[1723714560126,0.0779,58488.0,58487.0,0.17183426]
[1723714560427,0.0779,58488.0,58487.0,0.00085826]
[1723714560428,0.50982954,58488.0,58487.0,0.00085826]
[1723714560847,0.92862422,58488.0,58487.0,0.00085826]
[1723714561006,1.47996456,58488.0,58487.0,0.00085826]
[1723714561247,1.58242413,58488.0,58487.0,0.00085826]
[1723714561437,1.47996456,58488.0,58487.0,0.00085826]
[1723714561628,1.58242413,58488.0,58487.0,0.00085826]
[1723714561827,1.58174719,58488.0,58487.0,0.00085826]
[1723714562192,0.41564306,58488.0,58487.0,0.00085826]
[1723714562389,0.58661806,58488.0,58487.0,0.00691276]
[1723714562810,0.58861806,58488.0,58487.0,0.00691276]
[1723714563281,0.51182954,58488.0,58487.0,0.00691276]
[1723714563417,0.56500806,58488.0,58487.0,0.00691276]
[1723714564243,0.90695806,58488.0,58487.0,0.00691276]